[Event "Titled Tuesday Blitz February 14 Early 2023"]
[White "Derjabin, Ilja"]
[Black "Bilych, Olexiy"]
[WhiteFideId "14104768"]
[BlackFideId "14156504"]
[WhiteElo "2333"]
[BlackElo "2441"]
[Result "0-1"]
[Round "07"]
[TimeControl "180+2"]
[Date "2023.02.15"]
[WhiteClock "0:00:03"]
[BlackClock "0:00:16"]

1. d4 {[%clk 0:02:48]}  Nf6 {[%clk 0:02:59]} 2. c4 {[%clk 0:02:39]}  g6 {[%clk 0:02:59]} 3. Nc3 {[%clk 0:02:39]}  Bg7 {[%clk 0:02:59]} 4. e4 {[%clk 0:02:39]}  d6 {[%clk 0:03:00]} 5. Nge2 {[%clk 0:02:40]}  Nbd7 {[%clk 0:02:58]} 6. Ng3 {[%clk 0:02:39]}  e5 {[%clk 0:02:59]} 7. d5 {[%clk 0:02:40]}  h5 {[%clk 0:02:59]} 8. Be2 {[%clk 0:02:40]}  Bh6 {[%clk 0:02:52]} 9. Bxh6 {[%clk 0:02:39]}  Rxh6 {[%clk 0:02:53]} 10. Qd2 {[%clk 0:02:39]}  Rh8 {[%clk 0:02:53]} 11. O-O-O {[%clk 0:02:38]}  a5 {[%clk 0:02:53]} 12. h4 {[%clk 0:02:13]}  Nc5 {[%clk 0:02:45]} 13. f3 {[%clk 0:02:12]}  Bd7 {[%clk 0:02:42]} 14. Nf1 {[%clk 0:02:06]}  a4 {[%clk 0:02:39]} 15. Ne3 {[%clk 0:01:45]}  Kf8 {[%clk 0:02:39]} 16. Kb1 {[%clk 0:01:44]}  Kg7 {[%clk 0:02:35]} 17. Rdg1 {[%clk 0:01:42]}  Qe7 {[%clk 0:02:15]} 18. Bd1 {[%clk 0:01:31]}  c6 {[%clk 0:02:09]} 19. Bc2 {[%clk 0:01:19]}  Rhb8 {[%clk 0:01:49]} 20. g4 {[%clk 0:01:08]}  b5 {[%clk 0:01:47]} 21. gxh5 {[%clk 0:00:51]}  b4 {[%clk 0:01:19]} 22. hxg6 {[%clk 0:00:48]}  bxc3 {[%clk 0:01:17]} 23. gxf7+ {[%clk 0:00:48]}  Kxf7 {[%clk 0:01:16]} 24. Qxc3 {[%clk 0:00:48]}  cxd5 {[%clk 0:01:04]} 25. exd5 {[%clk 0:00:48]}  Rg8 {[%clk 0:01:03]} 26. h5 {[%clk 0:00:40]}  e4 {[%clk 0:00:54]} 27. f4 {[%clk 0:00:18]}  Rxg1+ {[%clk 0:00:47]} 28. Rxg1 {[%clk 0:00:19]}  Nxh5 {[%clk 0:00:45]} 29. f5 {[%clk 0:00:16]}  Nf6 {[%clk 0:00:43]} 30. b4 {[%clk 0:00:13]}  axb3 {[%clk 0:00:42]} 31. axb3 {[%clk 0:00:13]}  Rh8 {[%clk 0:00:32]} 32. b4 {[%clk 0:00:13]}  Nd3 {[%clk 0:00:32]} 33. Bxd3 {[%clk 0:00:13]}  exd3 {[%clk 0:00:33]} 34. Qxd3 {[%clk 0:00:13]}  Rh3 {[%clk 0:00:33]} 35. Re1 {[%clk 0:00:12]}  Qe5 {[%clk 0:00:25]} 36. Qd2 {[%clk 0:00:12]}  Bxf5+ {[%clk 0:00:20]} 37. Nxf5 {[%clk 0:00:11]}  Qxf5+ {[%clk 0:00:21]} 38. Qc2 {[%clk 0:00:08]}  Rb3+ {[%clk 0:00:20]} 39. Kc1 {[%clk 0:00:09]}  Qf4+ {[%clk 0:00:17]} 40. Kd1 {[%clk 0:00:08]}  Qf3+ {[%clk 0:00:17]} 41. Re2 {[%clk 0:00:08]}  Qf1+ {[%clk 0:00:14]} 42. Kd2 {[%clk 0:00:07]}  Qf4+ {[%clk 0:00:15]} 43. Ke1 {[%clk 0:00:06]}  Rh3 {[%clk 0:00:14]} 44. Rf2 {[%clk 0:00:03]}  Qe3+ {[%clk 0:00:14]} 45. Kf1 {[%clk 0:00:03]}  Rh1+ {[%clk 0:00:15]} 46. Kg2 {[%clk 0:00:03]}  Qh3# {[%clk 0:00:16]} 0-1


[Site "https://www.chess.com"]

[Event "Titled Tuesday Blitz February 14 Early 2023"]
[White "Toncheva, Nadya"]
[Black "Erdogdu, Mert"]
[WhiteFideId "2924056"]
[BlackFideId "6301495"]
[WhiteElo "2295"]
[BlackElo "2413"]
[Result "0-1"]
[Round "07"]
[TimeControl "180+2"]
[Date "2023.02.15"]
[WhiteClock "0:00:03"]
[BlackClock "0:01:51"]

1. e4 {[%clk 0:03:00]}  c5 {[%clk 0:02:59]} 2. Nf3 {[%clk 0:03:00]}  d6 {[%clk 0:02:57]} 3. d4 {[%clk 0:02:59]}  cxd4 {[%clk 0:02:58]} 4. Nxd4 {[%clk 0:03:00]}  Nf6 {[%clk 0:02:58]} 5. Nc3 {[%clk 0:03:01]}  a6 {[%clk 0:02:59]} 6. Be3 {[%clk 0:03:01]}  e6 {[%clk 0:02:59]} 7. Be2 {[%clk 0:02:56]}  Be7 {[%clk 0:02:59]} 8. Qd2 {[%clk 0:02:55]}  O-O {[%clk 0:02:53]} 9. O-O-O {[%clk 0:02:55]}  b5 {[%clk 0:02:52]} 10. f3 {[%clk 0:02:51]}  Bb7 {[%clk 0:02:51]} 11. g4 {[%clk 0:02:50]}  Nfd7 {[%clk 0:02:51]} 12. Rdg1 {[%clk 0:02:43]}  Nb6 {[%clk 0:02:50]} 13. h4 {[%clk 0:02:41]}  N8d7 {[%clk 0:02:51]} 14. g5 {[%clk 0:02:38]}  Ne5 {[%clk 0:02:51]} 15. b3 {[%clk 0:02:34]}  Rc8 {[%clk 0:02:46]} 16. h5 {[%clk 0:02:10]}  d5 {[%clk 0:02:47]} 17. f4 {[%clk 0:02:02]}  Bb4 {[%clk 0:02:42]} 18. fxe5 {[%clk 0:01:39]}  Bxc3 {[%clk 0:02:42]} 19. Qd1 {[%clk 0:01:38]}  Qe7 {[%clk 0:02:42]} 20. Kb1 {[%clk 0:01:38]}  dxe4 {[%clk 0:02:38]} 21. g6 {[%clk 0:01:34]}  Nd5 {[%clk 0:02:33]} 22. gxh7+ {[%clk 0:01:25]}  Kh8 {[%clk 0:02:31]} 23. Bc1 {[%clk 0:00:30]}  Bxd4 {[%clk 0:02:07]} 24. Qxd4 {[%clk 0:00:23]}  Nc3+ {[%clk 0:02:08]} 25. Ka1 {[%clk 0:00:23]}  Nxe2 {[%clk 0:02:08]} 26. h6 {[%clk 0:00:16]}  g6 {[%clk 0:02:05]} 27. Qf2 {[%clk 0:00:10]}  Nxc1 {[%clk 0:02:03]} 28. Rxc1 {[%clk 0:00:09]}  e3 {[%clk 0:02:03]} 29. Qxe3 {[%clk 0:00:08]}  Bxh1 {[%clk 0:02:03]} 30. Rxh1 {[%clk 0:00:09]}  Rxc2 {[%clk 0:02:03]} 31. Rd1 {[%clk 0:00:07]}  Rfc8 {[%clk 0:02:03]} 32. Kb1 {[%clk 0:00:06]}  Kxh7 {[%clk 0:02:03]} 33. Qf3 {[%clk 0:00:05]}  R8c3 {[%clk 0:01:58]} 34. Qa8 {[%clk 0:00:03]}  Qa3 {[%clk 0:01:51]} 0-1


[Site "https://www.chess.com"]

[Event "Titled Tuesday Blitz February 14 Early 2023"]
[White "Alex_Sahakyan2006"]
[Black "Robledo, Cristian"]
[BlackFideId "133450"]
[WhiteElo "2715"]
[BlackElo "2270"]
[Result "0-1"]
[Round "07"]
[TimeControl "180+2"]
[Date "2023.02.15"]
[WhiteClock "0:00:01"]
[BlackClock "0:00:04"]

1. e4 {[%clk 0:03:00]}  c5 {[%clk 0:02:54]} 2. a3 {[%clk 0:02:55]}  e6 {[%clk 0:02:55]} 3. b4 {[%clk 0:02:53]}  cxb4 {[%clk 0:02:54]} 4. axb4 {[%clk 0:02:50]}  Bxb4 {[%clk 0:02:55]} 5. Bb2 {[%clk 0:02:45]}  Bf8 {[%clk 0:02:51]} 6. h4 {[%clk 0:02:40]}  d6 {[%clk 0:02:48]} 7. h5 {[%clk 0:02:38]}  h6 {[%clk 0:02:46]} 8. d3 {[%clk 0:02:31]}  Nf6 {[%clk 0:02:46]} 9. Nd2 {[%clk 0:02:29]}  Nc6 {[%clk 0:02:44]} 10. f4 {[%clk 0:02:27]}  Be7 {[%clk 0:02:33]} 11. g4 {[%clk 0:02:25]}  e5 {[%clk 0:02:31]} 12. g5 {[%clk 0:02:23]}  Ng4 {[%clk 0:02:28]} 13. Qf3 {[%clk 0:02:09]}  hxg5 {[%clk 0:02:05]} 14. Bh3 {[%clk 0:02:03]}  Rxh5 {[%clk 0:01:53]} 15. O-O-O {[%clk 0:01:51]}  Rh4 {[%clk 0:01:40]} 16. f5 {[%clk 0:01:04]}  Nh6 {[%clk 0:01:33]} 17. Qg3 {[%clk 0:00:48]}  g4 {[%clk 0:01:15]} 18. Bg2 {[%clk 0:00:47]}  Rxh1 {[%clk 0:01:16]} 19. Bxh1 {[%clk 0:00:48]}  Bg5 {[%clk 0:01:17]} 20. Ne2 {[%clk 0:00:48]}  Qa5 {[%clk 0:01:12]} 21. Nc3 {[%clk 0:00:36]}  Bd7 {[%clk 0:01:08]} 22. Kb1 {[%clk 0:00:33]}  Rc8 {[%clk 0:01:07]} 23. Nc4 {[%clk 0:00:30]}  Qc5 {[%clk 0:00:47]} 24. Ba3 {[%clk 0:00:22]}  Nb4 {[%clk 0:00:46]} 25. Nd5 {[%clk 0:00:22]}  Nxd5 {[%clk 0:00:29]} 26. Bxc5 {[%clk 0:00:19]}  Nc3+ {[%clk 0:00:30]} 27. Ka1 {[%clk 0:00:17]}  Rxc5 {[%clk 0:00:30]} 28. Rb1 {[%clk 0:00:10]}  Nxb1 {[%clk 0:00:18]} 29. Kxb1 {[%clk 0:00:11]}  Ke7 {[%clk 0:00:13]} 30. Qe1 {[%clk 0:00:10]}  b5 {[%clk 0:00:12]} 31. Ne3 {[%clk 0:00:08]}  Bc6 {[%clk 0:00:11]} 32. Nd5+ {[%clk 0:00:08]}  Bxd5 {[%clk 0:00:11]} 33. exd5 {[%clk 0:00:09]}  Bf4 {[%clk 0:00:09]} 34. Qh4+ {[%clk 0:00:07]}  f6 {[%clk 0:00:08]} 35. Be4 {[%clk 0:00:07]}  b4 {[%clk 0:00:06]} 36. Qe1 {[%clk 0:00:06]}  b3 {[%clk 0:00:06]} 37. c4 {[%clk 0:00:05]}  g3 {[%clk 0:00:04]} 38. Qb4 {[%clk 0:00:04]}  Rc7 {[%clk 0:00:03]} 39. Qxb3 {[%clk 0:00:03]}  Ng4 {[%clk 0:00:02]} 40. Kc2 {[%clk 0:00:03]}  Nf2 {[%clk 0:00:03]} 41. Bg2 {[%clk 0:00:01]}  Ng4 {[%clk 0:00:03]} 42. Kc3 {[%clk 0:00:01]}  Ne3 {[%clk 0:00:04]} 0-1


[Site "https://www.chess.com"]

[Event "Titled Tuesday Blitz February 14 Early 2023"]
[White "Starozhilov, Leonid"]
[Black "AyMitecK"]
[WhiteFideId "14106752"]
[WhiteElo "2313"]
[BlackElo "2484"]
[Result "0-1"]
[Round "07"]
[TimeControl "180+2"]
[Date "2023.02.15"]
[WhiteClock "0:00:10"]
[BlackClock "0:01:33"]

1. e4 {[%clk 0:03:00]}  e6 {[%clk 0:03:00]} 2. d4 {[%clk 0:03:00]}  d5 {[%clk 0:03:00]} 3. Nc3 {[%clk 0:03:01]}  Nf6 {[%clk 0:03:00]} 4. Bg5 {[%clk 0:03:01]}  dxe4 {[%clk 0:03:00]} 5. Nxe4 {[%clk 0:03:00]}  Be7 {[%clk 0:03:00]} 6. Bxf6 {[%clk 0:03:00]}  gxf6 {[%clk 0:03:01]} 7. Nf3 {[%clk 0:03:00]}  f5 {[%clk 0:03:02]} 8. Ned2 {[%clk 0:03:00]}  a6 {[%clk 0:03:02]} 9. g3 {[%clk 0:02:58]}  b5 {[%clk 0:03:02]} 10. Bg2 {[%clk 0:02:58]}  Bb7 {[%clk 0:03:03]} 11. O-O {[%clk 0:02:58]}  c5 {[%clk 0:03:00]} 12. dxc5 {[%clk 0:02:56]}  Bxc5 {[%clk 0:03:00]} 13. Nb3 {[%clk 0:02:55]}  Qxd1 {[%clk 0:02:58]} 14. Raxd1 {[%clk 0:02:54]}  Bb6 {[%clk 0:02:56]} 15. Rfe1 {[%clk 0:02:53]}  O-O {[%clk 0:02:49]} 16. Ne5 {[%clk 0:02:52]}  Bxg2 {[%clk 0:02:49]} 17. Kxg2 {[%clk 0:02:53]}  Rc8 {[%clk 0:02:47]} 18. c3 {[%clk 0:02:35]}  Nc6 {[%clk 0:02:47]} 19. Nd7 {[%clk 0:02:00]}  Bc7 {[%clk 0:02:44]} 20. Nbc5 {[%clk 0:01:53]}  Kg7 {[%clk 0:02:41]} 21. Rd3 {[%clk 0:01:50]}  Bd8 {[%clk 0:02:31]} 22. Red1 {[%clk 0:01:40]}  Be7 {[%clk 0:02:31]} 23. Nb3 {[%clk 0:01:33]}  Rc7 {[%clk 0:02:26]} 24. Ndc5 {[%clk 0:01:28]}  Ne5 {[%clk 0:02:13]} 25. Re3 {[%clk 0:00:56]}  Nc4 {[%clk 0:02:04]} 26. Nxe6+ {[%clk 0:00:50]}  fxe6 {[%clk 0:01:59]} 27. Rxe6 {[%clk 0:00:51]}  Kf7 {[%clk 0:01:53]} 28. Rh6 {[%clk 0:00:46]}  Kg7 {[%clk 0:01:52]} 29. Re6 {[%clk 0:00:46]}  Nxb2 {[%clk 0:01:49]} 30. Rde1 {[%clk 0:00:44]}  Bf6 {[%clk 0:01:48]} 31. Na5 {[%clk 0:00:21]}  Bxc3 {[%clk 0:01:42]} 32. Rc1 {[%clk 0:00:15]}  Nd3 {[%clk 0:01:37]} 33. Rc2 {[%clk 0:00:13]}  Kf7 {[%clk 0:01:33]} 34. Rh6 {[%clk 0:00:10]}  Ne1+ {[%clk 0:01:33]} 0-1


[Site "https://www.chess.com"]

[Event "Titled Tuesday Blitz February 14 Early 2023"]
[White "Mushini Ajay"]
[Black "Skvortsov, Andrei"]
[WhiteFideId "35066188"]
[BlackFideId "24108600"]
[WhiteElo "2310"]
[BlackElo "2313"]
[Result "0-1"]
[Round "07"]
[TimeControl "180+2"]
[Date "2023.02.15"]
[WhiteClock "0:00:10"]
[BlackClock "0:00:20"]

1. d4 {[%clk 0:03:00]}  e6 {[%clk 0:02:57]} 2. c4 {[%clk 0:02:59]}  Nf6 {[%clk 0:02:54]} 3. Nc3 {[%clk 0:02:59]}  d5 {[%clk 0:02:52]} 4. cxd5 {[%clk 0:02:58]}  Nxd5 {[%clk 0:02:52]} 5. e4 {[%clk 0:02:58]}  Nxc3 {[%clk 0:02:52]} 6. bxc3 {[%clk 0:02:59]}  c5 {[%clk 0:02:53]} 7. Rb1 {[%clk 0:02:59]}  cxd4 {[%clk 0:02:50]} 8. cxd4 {[%clk 0:02:59]}  Qa5+ {[%clk 0:02:50]} 9. Bd2 {[%clk 0:03:00]}  Qxa2 {[%clk 0:02:33]} 10. Nf3 {[%clk 0:02:58]}  Qa3 {[%clk 0:02:27]} 11. Qc2 {[%clk 0:02:42]}  Nd7 {[%clk 0:02:04]} 12. Bb5 {[%clk 0:02:36]}  Qd6 {[%clk 0:02:00]} 13. O-O {[%clk 0:02:32]}  Be7 {[%clk 0:02:00]} 14. Rfd1 {[%clk 0:02:13]}  O-O {[%clk 0:01:43]} 15. Bb4 {[%clk 0:02:10]}  Qxb4 {[%clk 0:01:43]} 16. Rxb4 {[%clk 0:02:10]}  Bxb4 {[%clk 0:01:44]} 17. Nd2 {[%clk 0:02:01]}  a6 {[%clk 0:01:41]} 18. Bd3 {[%clk 0:01:52]}  e5 {[%clk 0:01:37]} 19. dxe5 {[%clk 0:01:43]}  Nxe5 {[%clk 0:01:36]} 20. Nc4 {[%clk 0:01:43]}  Nxd3 {[%clk 0:01:35]} 21. Qxd3 {[%clk 0:01:43]}  Be6 {[%clk 0:01:34]} 22. Nb6 {[%clk 0:01:40]}  Rab8 {[%clk 0:01:29]} 23. h3 {[%clk 0:01:27]}  h6 {[%clk 0:01:28]} 24. f4 {[%clk 0:01:24]}  Bc5+ {[%clk 0:01:20]} 25. Kh1 {[%clk 0:01:23]}  Bxb6 {[%clk 0:01:21]} 26. f5 {[%clk 0:01:23]}  Rbd8 {[%clk 0:01:18]} 27. Qe2 {[%clk 0:01:14]}  Bc4 {[%clk 0:01:08]} 28. Qg4 {[%clk 0:00:48]}  Rxd1+ {[%clk 0:01:06]} 29. Qxd1 {[%clk 0:00:49]}  Bd8 {[%clk 0:01:01]} 30. e5 {[%clk 0:00:41]}  Bb5 {[%clk 0:00:58]} 31. Qd6 {[%clk 0:00:36]}  Re8 {[%clk 0:00:53]} 32. f6 {[%clk 0:00:31]}  Bc6 {[%clk 0:00:47]} 33. Kg1 {[%clk 0:00:27]}  a5 {[%clk 0:00:42]} 34. Qd4 {[%clk 0:00:17]}  Bc7 {[%clk 0:00:33]} 35. Qg4 {[%clk 0:00:12]}  g6 {[%clk 0:00:32]} 36. Qf4 {[%clk 0:00:11]}  Kh7 {[%clk 0:00:26]} 37. Qc4 {[%clk 0:00:12]}  Re6 {[%clk 0:00:25]} 38. Qc5 {[%clk 0:00:11]}  Re8 {[%clk 0:00:16]} 39. e6 {[%clk 0:00:10]}  Rxe6 {[%clk 0:00:16]} 40. Qf8 {[%clk 0:00:10]}  Rxf6 {[%clk 0:00:17]} 41. Qe7 {[%clk 0:00:09]}  Bb6+ {[%clk 0:00:17]} 42. Kh2 {[%clk 0:00:09]}  Rf2 {[%clk 0:00:17]} 43. Kg3 {[%clk 0:00:09]}  Rxg2+ {[%clk 0:00:17]} 44. Kf4 {[%clk 0:00:10]}  Rf2+ {[%clk 0:00:18]} 45. Kg3 {[%clk 0:00:10]}  h5 {[%clk 0:00:17]} 46. h4 {[%clk 0:00:10]}  Rf5 {[%clk 0:00:17]} 47. Qe1 {[%clk 0:00:08]}  Bc7+ {[%clk 0:00:17]} 48. Kh3 {[%clk 0:00:07]}  Rf3+ {[%clk 0:00:18]} 49. Kg2 {[%clk 0:00:08]}  Re3+ {[%clk 0:00:18]} 50. Kf2 {[%clk 0:00:08]}  Rxe1 {[%clk 0:00:19]} 51. Kxe1 {[%clk 0:00:06]}  a4 {[%clk 0:00:20]} 52. Kf2 {[%clk 0:00:07]}  a3 {[%clk 0:00:20]} 53. Ke3 {[%clk 0:00:08]}  a2 {[%clk 0:00:21]} 54. Kd4 {[%clk 0:00:09]}  a1=Q+ {[%clk 0:00:21]} 55. Kc4 {[%clk 0:00:10]}  g5 {[%clk 0:00:20]} 0-1


[Site "https://www.chess.com"]

[Event "Titled Tuesday Blitz February 14 Early 2023"]
[White "Jarocka, Liwia"]
[Black "Panesso Rivera, Henry"]
[WhiteFideId "21807558"]
[BlackFideId "4402707"]
[WhiteElo "2225"]
[BlackElo "2342"]
[Result "0-1"]
[Round "07"]
[TimeControl "180+2"]
[Date "2023.02.15"]
[WhiteClock "0:00:13"]
[BlackClock "0:00:05"]

1. d4 {[%clk 0:03:00]}  d6 {[%clk 0:02:56]} 2. c4 {[%clk 0:02:56]}  g6 {[%clk 0:02:57]} 3. Nc3 {[%clk 0:02:46]}  Bg7 {[%clk 0:02:58]} 4. Nf3 {[%clk 0:02:46]}  Nf6 {[%clk 0:02:58]} 5. e4 {[%clk 0:02:46]}  O-O {[%clk 0:02:59]} 6. Be2 {[%clk 0:02:46]}  Bg4 {[%clk 0:02:59]} 7. O-O {[%clk 0:02:46]}  Nfd7 {[%clk 0:02:58]} 8. Be3 {[%clk 0:02:46]}  Nc6 {[%clk 0:02:58]} 9. Rc1 {[%clk 0:02:42]}  Bxf3 {[%clk 0:02:55]} 10. Bxf3 {[%clk 0:02:42]}  e5 {[%clk 0:02:56]} 11. d5 {[%clk 0:02:40]}  Nd4 {[%clk 0:02:56]} 12. Bg4 {[%clk 0:02:37]}  c5 {[%clk 0:02:55]} 13. dxc6 {[%clk 0:02:34]}  bxc6 {[%clk 0:02:55]} 14. Bxd7 {[%clk 0:02:29]}  Qxd7 {[%clk 0:02:55]} 15. c5 {[%clk 0:02:30]}  Rab8 {[%clk 0:02:50]} 16. b3 {[%clk 0:02:26]}  f5 {[%clk 0:02:48]} 17. exf5 {[%clk 0:02:18]}  Rxf5 {[%clk 0:02:47]} 18. cxd6 {[%clk 0:02:16]}  Qxd6 {[%clk 0:02:47]} 19. Ne4 {[%clk 0:02:14]}  Qd7 {[%clk 0:02:44]} 20. Ng3 {[%clk 0:02:14]}  Rf7 {[%clk 0:02:43]} 21. Bxd4 {[%clk 0:02:05]}  exd4 {[%clk 0:02:43]} 22. Qd3 {[%clk 0:02:04]}  Rbf8 {[%clk 0:02:40]} 23. Rc2 {[%clk 0:02:03]}  Qd5 {[%clk 0:02:35]} 24. f3 {[%clk 0:01:56]}  Bh6 {[%clk 0:02:32]} 25. Re1 {[%clk 0:01:52]}  Be3+ {[%clk 0:02:31]} 26. Kh1 {[%clk 0:01:41]}  Bg5 {[%clk 0:01:33]} 27. Ne4 {[%clk 0:01:34]}  Be3 {[%clk 0:01:32]} 28. Rc5 {[%clk 0:01:26]}  Qd7 {[%clk 0:01:31]} 29. Rxe3 {[%clk 0:01:20]}  Qe7 {[%clk 0:00:55]} 30. Qe2 {[%clk 0:01:13]}  dxe3 {[%clk 0:00:52]} 31. Qxe3 {[%clk 0:01:12]}  Rd8 {[%clk 0:00:43]} 32. Rc1 {[%clk 0:01:07]}  Qd7 {[%clk 0:00:38]} 33. h3 {[%clk 0:01:04]}  Qd4 {[%clk 0:00:37]} 34. Qxd4 {[%clk 0:00:57]}  Rxd4 {[%clk 0:00:38]} 35. Rxc6 {[%clk 0:00:57]}  Rd3 {[%clk 0:00:29]} 36. b4 {[%clk 0:00:50]}  Ra3 {[%clk 0:00:29]} 37. Rc2 {[%clk 0:00:48]}  Rd7 {[%clk 0:00:28]} 38. Rb2 {[%clk 0:00:44]}  Rd1+ {[%clk 0:00:23]} 39. Kh2 {[%clk 0:00:44]}  Ra1 {[%clk 0:00:24]} 40. Rc2 {[%clk 0:00:40]}  R1xa2 {[%clk 0:00:20]} 41. Rc8+ {[%clk 0:00:40]}  Kf7 {[%clk 0:00:19]} 42. Rc7+ {[%clk 0:00:40]}  Ke6 {[%clk 0:00:20]} 43. Rxh7 {[%clk 0:00:40]}  Rb2 {[%clk 0:00:20]} 44. Rg7 {[%clk 0:00:36]}  Rxb4 {[%clk 0:00:18]} 45. Rxg6+ {[%clk 0:00:36]}  Kf7 {[%clk 0:00:18]} 46. Rf6+ {[%clk 0:00:36]}  Kg7 {[%clk 0:00:18]} 47. Rc6 {[%clk 0:00:35]}  Ra2 {[%clk 0:00:17]} 48. Rc7+ {[%clk 0:00:33]}  Kg6 {[%clk 0:00:17]} 49. Rc6+ {[%clk 0:00:34]}  Kf7 {[%clk 0:00:17]} 50. Rc7+ {[%clk 0:00:26]}  Ke6 {[%clk 0:00:14]} 51. Rg7 {[%clk 0:00:25]}  a5 {[%clk 0:00:13]} 52. h4 {[%clk 0:00:24]}  Rb5 {[%clk 0:00:12]} 53. Rg6+ {[%clk 0:00:22]}  Ke7 {[%clk 0:00:10]} 54. Kh3 {[%clk 0:00:20]}  Ra1 {[%clk 0:00:10]} 55. g4 {[%clk 0:00:19]}  Rb3 {[%clk 0:00:07]} 56. Kg3 {[%clk 0:00:19]}  Re1 {[%clk 0:00:07]} 57. Kf4 {[%clk 0:00:17]}  Rf1 {[%clk 0:00:06]} 58. Ng5 {[%clk 0:00:17]}  Rb4+ {[%clk 0:00:05]} 59. Kg3 {[%clk 0:00:17]}  a4 {[%clk 0:00:05]} 60. Ra6 {[%clk 0:00:17]}  Ra1 {[%clk 0:00:05]} 61. h5 {[%clk 0:00:17]}  a3 {[%clk 0:00:05]} 62. h6 {[%clk 0:00:17]}  Rb8 {[%clk 0:00:05]} 63. Ra7+ {[%clk 0:00:16]}  Kd6 {[%clk 0:00:05]} 64. Ra6+ {[%clk 0:00:16]}  Kc5 {[%clk 0:00:05]} 65. Ne4+ {[%clk 0:00:16]}  Kb5 {[%clk 0:00:05]} 66. Ra7 {[%clk 0:00:15]}  Kb6 {[%clk 0:00:06]} 67. Ra4 {[%clk 0:00:14]}  a2 {[%clk 0:00:06]} 68. Nc3 {[%clk 0:00:14]}  Rg1+ {[%clk 0:00:06]} 69. Kf4 {[%clk 0:00:12]}  a1=Q {[%clk 0:00:06]} 70. Rb4+ {[%clk 0:00:13]}  Kc7 {[%clk 0:00:05]} 71. Rxb8 {[%clk 0:00:13]}  Kxb8 {[%clk 0:00:05]} 72. Ne4 {[%clk 0:00:14]}  Qd4 {[%clk 0:00:04]} 73. h7 {[%clk 0:00:14]}  Rh1 {[%clk 0:00:05]} 74. Kf5 {[%clk 0:00:13]}  Rxh7 {[%clk 0:00:05]} 0-1


[Site "https://www.chess.com"]

[Event "Titled Tuesday Blitz February 14 Early 2023"]
[White "Baskakov, Egor"]
[Black "Skuhala, Barbara"]
[WhiteFideId "24197866"]
[BlackFideId "14605465"]
[WhiteElo "2215"]
[BlackElo "2153"]
[Result "0-1"]
[Round "07"]
[TimeControl "180+2"]
[Date "2023.02.15"]
[WhiteClock "0:00:16"]
[BlackClock "0:00:51"]

1. e4 {[%clk 0:02:59]}  c5 {[%clk 0:02:56]} 2. Nf3 {[%clk 0:02:59]}  d6 {[%clk 0:02:56]} 3. d4 {[%clk 0:02:58]}  cxd4 {[%clk 0:02:55]} 4. Nxd4 {[%clk 0:02:58]}  Nf6 {[%clk 0:02:54]} 5. Nc3 {[%clk 0:02:59]}  a6 {[%clk 0:02:54]} 6. a4 {[%clk 0:02:59]}  e5 {[%clk 0:02:54]} 7. Nde2 {[%clk 0:02:56]}  Be7 {[%clk 0:02:54]} 8. g3 {[%clk 0:02:56]}  Be6 {[%clk 0:02:41]} 9. Bg2 {[%clk 0:02:55]}  Nbd7 {[%clk 0:02:40]} 10. h3 {[%clk 0:02:52]}  Nf8 {[%clk 0:02:39]} 11. O-O {[%clk 0:02:50]}  Ng6 {[%clk 0:02:37]} 12. a5 {[%clk 0:02:48]}  Qd7 {[%clk 0:02:37]} 13. Kh2 {[%clk 0:02:47]}  O-O {[%clk 0:02:37]} 14. f4 {[%clk 0:02:48]}  exf4 {[%clk 0:02:37]} 15. gxf4 {[%clk 0:02:48]}  Bc4 {[%clk 0:02:37]} 16. Re1 {[%clk 0:02:43]}  Rac8 {[%clk 0:02:29]} 17. Ng3 {[%clk 0:02:38]}  Nh4 {[%clk 0:02:25]} 18. Bh1 {[%clk 0:02:31]}  Rfe8 {[%clk 0:02:17]} 19. Be3 {[%clk 0:02:24]}  Be6 {[%clk 0:02:15]} 20. f5 {[%clk 0:02:19]}  Bc4 {[%clk 0:02:15]} 21. Bd4 {[%clk 0:02:16]}  h6 {[%clk 0:02:03]} 22. b3 {[%clk 0:02:14]}  Bb5 {[%clk 0:02:02]} 23. Nxb5 {[%clk 0:02:14]}  axb5 {[%clk 0:02:03]} 24. Rg1 {[%clk 0:02:07]}  Qc7 {[%clk 0:02:03]} 25. c3 {[%clk 0:02:01]}  Nh7 {[%clk 0:01:51]} 26. Nh5 {[%clk 0:01:54]}  d5+ {[%clk 0:01:48]} 27. e5 {[%clk 0:01:54]}  Bg5 {[%clk 0:01:46]} 28. Qe2 {[%clk 0:01:48]}  f6 {[%clk 0:01:44]} 29. Bxd5+ {[%clk 0:01:42]}  Kh8 {[%clk 0:01:44]} 30. Rae1 {[%clk 0:01:43]}  Rcd8 {[%clk 0:01:41]} 31. c4 {[%clk 0:01:40]}  bxc4 {[%clk 0:01:37]} 32. bxc4 {[%clk 0:01:40]}  Qxa5 {[%clk 0:01:36]} 33. Kh1 {[%clk 0:01:26]}  fxe5 {[%clk 0:01:24]} 34. Bxe5 {[%clk 0:01:24]}  Nf6 {[%clk 0:01:23]} 35. Rxg5 {[%clk 0:01:10]}  Rxd5 {[%clk 0:01:17]} 36. Bxf6 {[%clk 0:00:39]}  Qxe1+ {[%clk 0:01:06]} 37. Rg1 {[%clk 0:00:20]}  Qxg1+ {[%clk 0:00:57]} 38. Kxg1 {[%clk 0:00:20]}  Rxe2 {[%clk 0:00:57]} 39. Bxg7+ {[%clk 0:00:20]}  Kh7 {[%clk 0:00:57]} 40. cxd5 {[%clk 0:00:19]}  Nxf5 {[%clk 0:00:55]} 41. Bd4 {[%clk 0:00:18]}  Nxd4 {[%clk 0:00:53]} 42. d6 {[%clk 0:00:16]}  Nc6 {[%clk 0:00:53]} 43. Nf6+ {[%clk 0:00:16]}  Kg6 {[%clk 0:00:53]} 44. Ng4 {[%clk 0:00:16]}  Rd2 {[%clk 0:00:51]} 0-1


[Site "https://www.chess.com"]